[Event "CIS Master Groups 2024"]
[Site "Vasto"]
[Date "2024.04.11"]
[Round "5.1"]
[White "Moroni, Luca Jr"]
[Black "Saric, Ivan"]
[Result "0-1"]
[ECO "D02"]
[WhiteElo "2580"]
[BlackElo "2670"]
[Annotator "TA"]
[PlyCount "88"]
[EventDate "2024.04.07"]
[EventType "team-tourn"]
[EventCountry "ITA"]
[SourceTitle "playchess.com"]
[Source "ChessBase"]
[SourceQuality "1"]
[TimeControl "40/5400+30:900+30"]

{[%evp 9,88,11,11,0,0,0,0,0,0,0,-1,-12,0,0,15,-25,0,-22,-29,-45,-30,-23,0,0,0,-41,-40,-50,52,-81,-87,-74,-85,-99,-103,-122,-87,-162,-144,-139,-156,-155,-161,-175,-174,-216,-201,-247,-237,-235,-223,-239,-238,-273,-245,-289,-269,-304,-290,-285,-283,-316,-316,-316,-316,-410,-410,-431,-405,-501,-483,-459,-421,-1583,-302,-1608,-1412,-5102,-4597,-1389,-1315]} 1. Nf3 {[%emt 0:00:10]} d5 {[%emt 0:00:33]} 2. d4 {[%emt 0:00:08]} Nf6 {[%emt 0:00:04]} 3. c3 {[%emt 0:00:04]} e6 {[%emt 0:02:01]} 4. Bf4 {[%emt 0:00:07]} c5 {[%emt 0:00:44]} 5. e3 {[%emt 0:00:15]} Bd6 {[%emt 0:02:14]} 6. Nbd2 {[%emt 0:00:52]} cxd4 {[%emt 0:01:45]} 7. cxd4 {[%emt 0:01:45]} Bxf4 {[%emt 0:04:45]} 8. exf4 {[%emt 0:05:56] The position is equal.} O-O {[%emt 0:00:08]} 9. Bd3 {[%emt 0:04:41]} Nc6 {[%emt 0:00:24]} 10. O-O {[%emt 0:10:18]} Qb6 {[%emt 0:03:55]} 11. Nb3 {[%emt 0:03:01]} a5 {[%emt 0:03:57]} 12. a4 {[%emt 0:08:20]} Ne4 {[%emt 0:01:32]} 13. Bxe4 {[%emt 0:16:40]} dxe4 {[%emt 0:00:12]} 14. Ne5 {[%emt 0:01:38]} Nxe5 {[%emt 0:08:42]} 15. fxe5 {[%emt 0:07:00]} Bd7 {[%emt 0:01:21]} 16. Nc5 {[%emt 0:08:19]} Bc6 {[%emt 0:02:43][%cal Ob6b4]} 17. Qe2 {[%emt 0:07:03][%cal Of1d1]} Rfd8 {[%emt 0:01:09]} 18. Rfd1 {[%emt 0:01:04][%cal Oa1c1]} Rd5 {[%emt 0:07:29]} (18... Qb4 $15 19. Qe3 h6 (19... Qxb2 20. Nb3 $15)) 19. Nxe4 {[%emt 0:14:35]} (19. Rac1 $1 $14) 19... Rxd4 $17 {[%emt 0:00:39] Black keeps a firm grip on the game.} 20. Rxd4 {[%emt 0:01:15]} Qxd4 {[%emt 0:00:04]} 21. Nc3 {[%emt 0:00:15]} h6 {[%emt 0:03:24] Black is more active.} 22. h3 {[%emt 0:01:04]} Qf4 {[%emt 0:01:44]} 23. Rd1 {[%emt 0:02:21]} (23. Nb5 $17) 23... Bxa4 $40 {[%emt 0:08:46][%mdl 128] Black has strong attack.} 24. Nxa4 {[%emt 0:00:04]} Qxa4 {[%emt 0:00:06][%mdl 4096] Endgame. KQR-KQR} 25. Rd6 {[%emt 0:00:15]} Rc8 {[%emt 0:02:29]} 26. g3 {[%emt 0:00:31]} b5 {[%emt 0:03:11]} 27. Kg2 {[%emt 0:01:44]} Qc2 {[%emt 0:02:54]} 28. Qxc2 {[%emt 0:03:24]} Rxc2 {[%emt 0:00:04] KR-KR} 29. b3 {[%emt 0:00:28]} Rc5 {[%emt 0:02:22]} 30. Ra6 {[%emt 0:00:27]} b4 {[%emt 0:00:04]} ({Much less strong is} 30... Rxe5 31. Rxa5 g5 32. Ra8+ Kg7 33. Rb8 $17) 31. Ra8+ {[%emt 0:00:39]} Kh7 {[%emt 0:00:04][%cal Oh7g6]} 32. f4 {[%emt 0:00:08]} h5 {[%emt 0:04:20]} 33. Ra7 {[%emt 0:01:13]} Rc2+ {[%emt 0:06:37]} 34. Kf3 {[%emt 0:00:07]} Rc3+ {[%emt 0:00:04]} 35. Kg2 {[%emt 0:00:22]} Rxb3 {[%emt 0:00:17] [#] Strongly threatening ...Ra3.} 36. Rxa5 {[%emt 0:00:06]} Rc3 {[%emt 0:00:31]} 37. Rb5 {[%emt 0:00:35]} b3 {[%emt 0:00:05]} 38. Rb7 {[%emt 0:01:47]} Kg6 {[%emt 0:00:42]} 39. h4 {[%emt 0:00:34]} Rc2+ {[%emt 0:00:49]} 40. Kf3 {[%emt 0:00:35]} Rb2 {[%emt 0:05:07]} 41. Rb6 {[%emt 0:12:56]} (41. Ke4 $142 Rb1 42. f5+ exf5+ 43. Kf3) 41... Rb1 {[%emt 0:00:13]} 42. Kg2 $2 {[%emt 0:00:14]} (42. Rb5) 42... Kf5 {[%emt 0:05:26] Black is clearly winning.} 43. Rb7 {[%emt 0:00:46]} Kg4 {[%emt 0:00:54] [#] ...g6 is the strong threat.} 44. Kf2 {[%emt 0:01:20]} g6 {[%emt 0:01:20] Weighted Error Value: White=0.73/Black=0.08 (flawless) .  Mistake:       	White=4     	Black=1      Inaccurate:     	White=3     	---        OK:         	White=9     	Black=20     Best:        	White=3     	Black=3} 0-1

[Event "CIS Master Groups 2024"]
[Site "Vasto"]
[Date "2024.04.11"]
[Round "5.2"]
[White "Brunello, Sabino"]
[Black "Pelletier, Yannick"]
[Result "1/2-1/2"]
[ECO "E48"]
[WhiteElo "2515"]
[BlackElo "2524"]
[Annotator "TA"]
[PlyCount "37"]
[EventDate "2024.04.07"]
[EventType "team-tourn"]
[EventCountry "ITA"]
[SourceTitle "playchess.com"]
[Source "ChessBase"]
[SourceQuality "1"]
[TimeControl "40/5400+30:900+30"]

{[%evp 13,37,-10,3,13,10,10,5,2,28,0,3,10,0,0,8,10,9,10,8,0,0,0,0,0,0,0]} 1. d4 {[%emt 0:04:36]} Nf6 {[%emt 0:00:17]} 2. c4 {[%emt 0:00:16]} e6 {[%emt 0:00:20]} 3. Nc3 {[%emt 0:00:12]} Bb4 {[%emt 0:00:47]} 4. e3 {[%emt 0:00:15]} O-O {[%emt 0:00:16]} 5. Bd3 {[%emt 0:00:58]} c5 {[%emt 0:00:23]} 6. Nge2 {[%emt 0:00:34]} d5 {[%emt 0:01:22]} 7. a3 {[%emt 0:09:17][%cal Ba2a3,Ba3b4,Bb4b5][%mdl 32]} cxd4 {[%emt 0:02:09]} 8. axb4 {[%emt 0:00:58]} dxc3 {[%emt 0:00:07]} 9. Nxc3 {[%emt 0:00:19]} Nc6 {[%emt 0:21:11][%cal Bb8c6,Bc6b4,Bb4d3][%mdl 32]} 10. b5 {[%emt 0:03:14]} Nb4 {[%emt 0:08:31]} 11. cxd5 {[%emt 0:08:00]} Nxd3+ {[%emt 0:12:45] The position is equal.} 12. Qxd3 {[%emt 0:00:03]} Nxd5 {[%emt 0:00:06]} 13. Nxd5 {[%emt 0:14:38]} exd5 {[%emt 0:00:11]} 14. O-O {[%emt 0:01:50]} Qb6 {[%emt 0:05:20]} 15. Bd2 {[%emt 0:17:23][%cal Od2b4]} Bd7 {[%emt 0:05:59]} 16. Ra5 {[%emt 0:00:46][%cal Of1a1]} a6 {[%emt 0:04:16]} 17. bxa6 {[%emt 0:01:22]} ({But not} 17. Qxd5 Bxb5 18. Qb3 Qg6 19. Rxb5 axb5 20. Qxb5 Qa6 $17) 17... bxa6 {[%emt 0:00:05]} 18. Qd4 {[%emt 0:22:57]} ({Of course not} 18. Rxd5 Bb5 19. Qb3 Qe6 $15) 18... Qxd4 {[%emt 0:01:30]} 19. exd4 {[%emt 0:00:03] Not much happened in this game.   Weighted Error Value: White=0.05 (flawless) /Black=0.04 (flawless) .  Inaccurate:     	---       	Black=1      OK:         	White=3     	Black=6      Best:        	White=1     	Black=1} 1/2-1/2

[Event "CIS Master Groups 2024"]
[Site "Vasto"]
[Date "2024.04.11"]
[Round "5.3"]
[White "Borgo, Giulio"]
[Black "Dvirnyy, Danyyil"]
[Result "0-1"]
[ECO "C70"]
[WhiteElo "2309"]
[BlackElo "2480"]
[Annotator "TA"]
[PlyCount "106"]
[EventDate "2024.04.07"]
[EventType "team-tourn"]
[EventCountry "ITA"]
[SourceTitle "playchess.com"]
[Source "ChessBase"]
[SourceQuality "1"]
[TimeControl "40/5400+30:900+30"]

{[%evp 12,106,74,16,38,52,31,16,13,-43,-54,-48,0,0,-14,-51,-66,-89,-87,-95,-97,-94,-101,-102,-105,-102,-102,-103,-97,-98,-93,-100,-102,-100,-98,-99,-102,-127,-98,-95,-93,-225,-224,-233,-237,-215,-239,-231,-241,-266,-265,-368,-318,-329,-335,-325,-304,-338,-332,-316,-305,-310,-306,-372,-358,-372,-358,-498,-498,-823,-818,-720,-580,-779,-701,-1587,-1468,-1587,-1563,-1060,-5073,-29963,-29964,-29967,-29968,-29968,-29969,-29970,-29967,-29969,-29973,-29972,-29972,-29975,-29976,-29977,-29978]} 1. e4 {[%emt 0:00:04]} e5 {[%emt 0:04:59]} 2. Nf3 {[%emt 0:00:50]} Nc6 {[%emt 0:00:07]} 3. Bb5 {[%emt 0:00:33]} a6 {[%emt 0:01:06]} 4. Ba4 {[%emt 0:00:08]} Nge7 {[%emt 0:07:53]} 5. c3 {[%emt 0:08:28]} Ng6 {[%emt 0:00:11]} 6. d4 {[%emt 0:02:07] C70: Ruy Lopez: 3...a6 4 Ba4, Norwegian and Delayed Schliemann.} exd4 {[%emt 0:00:12]} 7. Nxd4 {[%emt 0:00:18]} ({White should play} 7. cxd4 $16 Bb4+ 8. Nc3) 7... Bc5 $11 {[%emt 0:01:18]} 8. Be3 {[%emt 0:02:45]} Nce5 {[%emt 0:04:24]} 9. O-O $146 {[%emt 0:11:33]} ({Predecessor:} 9. Bb3 d6 10. h3 O-O 11. f4 Qh4+ 12. Bf2 Qxf4 13. Qe2 Qc1+ 14. Qd1 Nd3+ 15. Kf1 Qxd1+ 16. Bxd1 Nxb2 {0-1 Niemann,H (2676)-Demchenko,A (2609) Titled Tuesday intern op 12th Mar Late blitz 2024 (8)}) 9... O-O {[%emt 0:01:32] [#]} (9... Nc4 {simplifies} 10. Bc1 O-O 11. Nd2 Nxd2 12. Bxd2 d5) 10. Nc6 {[%emt 0:20:30]} (10. Nd2 $1 $11) 10... dxc6 $15 {[%emt 0:22:20]} 11. Bxc5 {[%emt 0:01:16]} Qg5 {[%emt 0:05:24]} (11... Nf4 {simplifies} 12. Qxd8 Rxd8 13. Bc2 Nfd3) 12. Be3 $1 {[%emt 0:03:17]} (12. Bxf8 Nh4 (12... Bh3 $2 13. g3 $19) 13. g3 Nhf3+ $19) 12... Nf4 {[%emt 0:00:31]} 13. Bxf4 {[%emt 0:08:43]} Qxf4 {[%emt 0:00:21]} 14. Qd2 {[%emt 0:18:09]} Qxe4 {[%emt 0:04:06]} 15. Bc2 {[%emt 0:01:54]} Qh4 {[%emt 0:01:35]} (15... Qd5 {simplifies} 16. Qxd5 cxd5 17. Nd2 Bd7) 16. Re1 {[%emt 0:03:53]} Nc4 {[%emt 0:06:08]} 17. Qe2 {[%emt 0:04:10]} Be6 {[%emt 0:05:37]} (17... Nxb2 18. Bb3 $16) 18. Nd2 {[%emt 0:04:09]} Nxd2 {[%emt 0:04:08]} (18... Nxb2 $2 19. Rab1 $18) 19. Qxd2 {[%emt 0:00:09]} Rad8 {[%emt 0:00:18]} 20. Qe3 {[%emt 0:00:12]} g6 {[%emt 0:02:00]} 21. Bb3 {[%emt 0:02:48]} Rfe8 {[%emt 0:14:49]} 22. Rad1 {[%emt 0:00:57]} Rxd1 {[%emt 0:00:23]} 23. Rxd1 {[%emt 0:00:47]} Rd8 {[%emt 0:00:27]} 24. Re1 {[%emt 0:00:57]} Rd6 {[%emt 0:03:34]} 25. g3 {[%emt 0:01:05]} Qd8 {[%emt 0:00:13]} 26. Kg2 {[%emt 0:01:55]} (26. Bxe6 $17 Rxe6 27. Qc1) 26... Bxb3 $19 {[%emt 0:03:52]} 27. Qe8+ {[%emt 0:01:43]} Qxe8 {[%emt 0:01:11]} 28. Rxe8+ {[%emt 0:00:02]} Kg7 {[%emt 0:00:07]} 29. axb3 {[%emt 0:00:12]} Rd2 {[%emt 0:00:24]} 30. Rb8 {[%emt 0:01:09]} b6 {[%emt 0:00:31]} (30... Rxb2 31. Rxb7 a5 32. Rxc7 $11) 31. Rb7 {[%emt 0:00:41]} Rxb2 {[%emt 0:00:57]} 32. b4 {[%emt 0:00:24]} Rb3 {[%emt 0:01:15]} 33. Rxc7 {[%emt 0:00:08]} Rxc3 {[%emt 0:00:38]} 34. Rb7 {[%emt 0:00:17]} b5 {[%emt 0:01:12]} 35. Rb6 {[%emt 0:00:01]} Kf6 {[%emt 0:02:23]} 36. Rxa6 {[%emt 0:00:05]} Rc4 {[%emt 0:00:29]} 37. f4 {[%emt 0:01:46]} Ke6 {[%emt 0:01:06]} (37... Rxb4 38. Rxc6+ Kf5 39. Rc7 $17) 38. Kf3 {[%emt 0:00:50]} h5 {[%emt 0:00:38]} (38... Rxb4 39. Rxc6+ Ke7 40. Rb6 $17) 39. h3 {[%emt 0:00:32]} f5 {[%emt 0:00:46]} (39... Rxb4 40. Rxc6+ Kd7 41. Rb6 $17) ({Weaker is} 39... Kd5 40. Ra7 $19) 40. Ke3 {[%emt 0:00:32]} (40. g4 $142) 40... Kd5 $19 {[%emt 0:00:28]} ({Not} 40... Rxb4 41. Rxc6+ Kf7 42. Rc7+ Ke8 43. Rb7 $11) 41. Ra8 {[%emt 0:02:39]} Re4+ {[%emt 0:00:57]} 42. Kf3 {[%emt 0:02:30]} Rxb4 {[%emt 0:02:50]} 43. Rg8 {[%emt 0:00:25]} Rb3+ {[%emt 0:00:18]} 44. Kf2 {[%emt 0:00:05]} b4 {[%emt 0:00:14]} 45. Rxg6 {[%emt 0:00:22]} Rc3 {[%emt 0:00:50]} 46. Rf6 {[%emt 0:00:28]} b3 {[%emt 0:00:21]} 47. Rxf5+ {[%emt 0:00:04]} Kd4 {[%emt 0:02:21]} 48. Rf8 {[%emt 0:00:33]} Rc5 {[%emt 0:04:15]} 49. Rd8+ {[%emt 0:03:00]} Rd5 {[%emt 0:00:10]} 50. Rb8 {[%emt 0:00:09]} Rb5 {[%emt 0:00:05]} 51. Rd8+ {[%emt 0:00:10]} Kc3 {[%emt 0:00:12]} 52. Ke3 {[%emt 0:01:52]} b2 {[%emt 0:00:14]} 53. Rd3+ {[%emt 0:00:09]} Kc4 {[%emt 0:00:27]} 0-1

[Event "CIS Master Groups 2024"]
[Site "Vasto"]
[Date "2024.04.11"]
[Round "5.4"]
[White "Gilevych, Artem"]
[Black "Podetti, Davide"]
[Result "1-0"]
[ECO "D36"]
[WhiteElo "2417"]
[BlackElo "2280"]
[Annotator "TA"]
[PlyCount "97"]
[EventDate "2024.04.07"]
[EventType "team-tourn"]
[EventCountry "ITA"]
[SourceTitle "playchess.com"]
[Source "ChessBase"]
[SourceQuality "1"]
[TimeControl "40/5400+30:900+30"]

{[%evp 21,97,12,15,0,33,33,42,43,44,30,40,33,62,32,69,30,10,35,50,49,80,81,81,81,81,81,81,81,116,117,120,117,103,108,99,102,121,121,114,102,107,110,115,77,183,193,167,65,146,133,179,183,179,170,247,208,243,264,303,222,247,193,368,14,289,362,338,339,420,396,930,840,29975,1660,2218,1942,1154,906]} 1. c4 {[%emt 0:00:04]} e6 {[%emt 0:01:08]} 2. Nc3 {[%emt 0:00:31]} d5 {[%emt 0:01:06]} 3. d4 {[%emt 0:00:25]} Nf6 {[%emt 0:01:05]} 4. cxd5 {[%emt 0:00:07]} exd5 {[%emt 0:00:25]} 5. Bg5 {[%emt 0:00:05]} c6 {[%emt 0:01:33]} 6. e3 {[%emt 0:00:10]} Be7 {[%emt 0:01:33]} 7. Bd3 {[%emt 0:01:32]} O-O {[%emt 0:02:11]} 8. Qc2 {[%emt 0:02:08]} Nbd7 {[%emt 0:05:21]} 9. Nf3 {[%emt 0:00:19]} Re8 {[%emt 0:02:58]} 10. O-O {[%emt 0:00:07]} Nf8 {[%emt 0:02:09]} 11. Rae1 {[%emt 0:00:05]} g6 {[%emt 0:09:14]} 12. Ne5 {[%emt 0:00:17]} N6d7 {[%emt 0:03:29]} 13. Bxe7 {[%emt 0:03:38]} Qxe7 {[%emt 0:01:49]} 14. f4 {[%emt 0:00:05] White is slightly better.} f5 {[%emt 0:04:15]} 15. Kh1 {[%emt 0:22:35]} Nxe5 {[%emt 0:05:17]} 16. fxe5 {[%emt 0:00:41]} Be6 {[%emt 0:00:47]} 17. Na4 {[%emt 0:04:09]} Nd7 {[%emt 0:00:37]} 18. b4 {[%emt 0:02:21]} b5 {[%emt 0:17:20]} 19. Nc5 {[%emt 0:03:45]} Nxc5 {[%emt 0:00:03]} 20. bxc5 {[%emt 0:00:04]} Rf8 {[%emt 0:01:06]} 21. a4 {[%emt 0:01:15]} a6 {[%emt 0:00:51][%cal Ba7a6,Ba6b5][%mdl 32]} 22. Ra1 {[%emt 0:00:50][%cal Be1a1,Ba1a6,Ba6c6,Bc6b6][%mdl 32]} Ra7 {[%emt 0:06:42]} 23. Rf3 {[%emt 0:21:44]} Qg7 {[%emt 0:05:42]} 24. Qd2 {[%emt 0:00:55]} Raf7 {[%emt 0:05:17]} 25. axb5 {[%emt 0:03:59]} axb5 {[%emt 0:00:06]} 26. Ra6 {[%emt 0:00:08]} Bd7 {[%emt 0:01:14] [#]} 27. e6 $1 {[%emt 0:01:54][%mdl 512]} Bxe6 {[%emt 0:00:05]} 28. Rxc6 {[%emt 0:00:04]} Bd7 {[%emt 0:00:10][%cal Be6d7,Bd7f5,Bf5e4][%mdl 32] [#]} 29. Rb6 {[%emt 0:14:17][%cal Od2a2]} f4 {[%emt 0:00:44]} 30. Bxb5 {[%emt 0:01:13] White is much more active.} (30. Rxf4 $2 Rxf4 31. exf4 Qxd4 $19) 30... fxe3 {[%emt 0:14:38]} 31. Qxe3 {[%emt 0:00:23]} Re8 {[%emt 0:00:39]} 32. Qf2 {[%emt 0:06:19]} Rfe7 {[%emt 0:00:16]} (32... Ra8 $16 33. Bf1 Rxf3 34. gxf3 Qe7) 33. Bf1 $18 {[%emt 0:06:24]} Bf5 {[%emt 0:01:33]} 34. Rfb3 {[%emt 0:01:23]} (34. h3 $18) 34... Rf8 {[%emt 0:01:05]} (34... Rf7 $1 $14 35. Rf3 h6) 35. Rb8 $16 {[%emt 0:01:14]} Ree8 {[%emt 0:00:46]} (35... Be4 $16 {was necessary.}) 36. Rxe8 $18 {[%emt 0:01:03]} Rxe8 {[%emt 0:00:01]} 37. h3 {[%emt 0:00:31]} Be4 {[%emt 0:01:02]} (37... Rf8 $142) 38. Be2 {[%emt 0:01:58]} Ra8 {[%emt 0:02:18]} 39. Kh2 {[%emt 0:00:41]} h5 {[%emt 0:00:40]} 40. Bf3 {[%emt 0:00:22] Bxe4 is the strong threat.} Rf8 {[%emt 0:00:14]} 41. Rb6 {[%emt 0:06:30] aiming for Qg3.} Kh7 $2 {[%emt 0:01:18]} (41... Qh6 {keeps fighting.} 42. h4 Qf4+ 43. Qg3 Bxf3) 42. Re6 $2 {[%emt 0:05:33]} ({White must play} 42. Qe3 $18 Qc7+ 43. Rd6 Bxf3 44. gxf3) 42... Bxf3 {[%emt 0:05:00][%mdl 8192] This costs Black the game.} (42... Qf7 $1 $11 43. Re5 Qf4+ 44. Qg3 Bxf3 45. Qxf4 (45. gxf3 Qd2+ 46. Kh1 Qxd4 $11) 45... Rxf4) 43. gxf3 $11 {[%emt 0:00:19][%mdl 4096] Endgame. KQR-KQR} Rf4 {[%emt 0:00:06]} 44. Re5 {[%emt 0:01:26]} Qf6 {[%emt 0:01:56]} 45. Kg2 {[%emt 0:00:50][%cal Of2e3]} (45. Rxd5 $2 {too greedy.} Rxf3 46. Rd7+ Kh8 $19) 45... Qf7 $2 {[%emt 0:02:32]} (45... Qd8 46. Qe3 Rf7) 46. Qe3 $18 {[%emt 0:00:31] Hoping for Re7.} Kh6 {[%emt 0:01:19] [#]} 47. Rxd5 $3 {[%emt 0:02:08][%mdl 512]} Qxd5 {[%emt 0:01:16]} 48. Qxf4+ {[%emt 0:00:04]} Kh7 {[%emt 0:00:10]} 49. Qc7+ {[%emt 0:00:23] Weighted Error Value: White=0.30/Black=0.54.  Loses game:     	---       	Black=1      Missed win:     	White=1     	---        Mistake:       	White=1     	Black=6      Inaccurate:     	White=3     	Black=6      OK:         	White=16    	Black=9      Best:        	White=5     	Black=1} 1-0